bitfinex/quotes_BTCUSD_20241014
["timestamp","ask_amount","ask_price","bid_price","bid_amount"]
[1728889291640,0.94803685,64181.0,64180.0,0.09085141]
[1728889292090,0.94803685,64181.0,64180.0,0.07685141]
[1728889292316,0.94703685,64181.0,64180.0,0.07685141]
[1728889292539,1.06373206,64181.0,64180.0,0.07685141]
[1728889292767,0.94703685,64181.0,64180.0,0.07685141]
[1728889293296,1.01679125,64181.0,64180.0,0.07685141]
[1728889293525,1.01679125,64181.0,64180.0,0.08485141]
[1728889293743,1.02279125,64181.0,64180.0,0.07685141]
[1728889294188,1.01679125,64181.0,64180.0,0.07885141]
[1728889294637,0.88872944,64181.0,64180.0,0.07885141]
[1728889294869,0.98208384,64181.0,64180.0,0.07885141]
[1728889295092,0.87572944,64181.0,64180.0,0.07685141]
[1728889295316,0.89072944,64181.0,64180.0,0.07685141]
[1728889296252,0.9383331,64181.0,64180.0,0.07685141]
[1728889296482,0.8851331,64181.0,64180.0,0.07685141]
[1728889296711,0.8851331,64181.0,64180.0,0.04568941]
[1728889296945,0.8841331,64181.0,64180.0,0.04568941]
[1728889297220,0.8711331,64181.0,64180.0,0.04568941]
[1728889297438,0.8751331,64181.0,64180.0,4.1e-07]
[1728889297655,0.89572944,64181.0,64180.0,4.1e-07]
[1728889298113,0.68539366,64181.0,64180.0,4.1e-07]
[1728889298350,0.79406155,64181.0,64180.0,4.1e-07]
[1728889298811,0.69406155,64181.0,64180.0,4.1e-07]
[1728889299043,0.68006155,64181.0,64180.0,4.1e-07]
[1728889299270,0.69406155,64181.0,64180.0,4.1e-07]
[1728889299723,0.69606155,64181.0,64180.0,4.1e-07]
[1728889299947,0.79406155,64181.0,64180.0,4.1e-07]
[1728889300391,0.78006155,64181.0,64180.0,4.1e-07]
[1728889300856,0.79406155,64181.0,64180.0,0.00300041]
[1728889301327,0.78006155,64181.0,64180.0,0.00300041]
[1728889301773,0.79206155,64181.0,64180.0,0.00300041]
[1728889302233,0.78006155,64181.0,64180.0,0.00300041]
[1728889302702,0.87572944,64181.0,64180.0,4.1e-07]
[1728889303163,0.87572944,64181.0,64180.0,0.00100041]
[1728889303387,0.87572944,64181.0,64180.0,4.1e-07]
[1728889303639,0.88972944,64181.0,64180.0,4.1e-07]
[1728889303867,0.88972944,64181.0,64180.0,0.00300041]
[1728889304313,0.78006155,64181.0,64180.0,0.00300041]
[1728889304525,0.79206155,64181.0,64180.0,4.1e-07]
[1728889305173,0.78006155,64181.0,64180.0,4.1e-07]
[1728889305391,0.79406155,64181.0,64180.0,4.1e-07]
[1728889305828,0.79406155,64181.0,64180.0,0.00100041]
[1728889306497,0.88972944,64181.0,64180.0,0.00100041]
[1728889306927,0.78006155,64181.0,64180.0,0.00100041]
[1728889307390,0.79406155,64181.0,64180.0,0.00100041]
[1728889307851,0.78006155,64181.0,64180.0,0.00100041]
[1728889308066,0.88972944,64181.0,64180.0,0.00100041]
[1728889308287,0.78237151,64181.0,64180.0,0.00100041]
[1728889310144,0.76837151,64181.0,64180.0,4.1e-07]
[1728889310419,0.78137151,64181.0,64180.0,4.1e-07]
[1728889310641,0.78137151,64181.0,64180.0,0.00200041]
[1728889310828,0.76837151,64181.0,64180.0,4.1e-07]
[1728889311065,0.76837151,64181.0,64180.0,0.00100041]
[1728889311310,0.78237151,64181.0,64180.0,0.00100041]
[1728889311753,0.76837151,64181.0,64180.0,0.00300041]
[1728889312201,0.78137151,64181.0,64180.0,0.00300041]
[1728889314258,0.78137151,64181.0,64180.0,0.00275839]
[1728889317275,0.68570362,64181.0,64180.0,0.00275839]
[1728889317510,0.78137151,64181.0,64180.0,0.00275839]
[1728889317731,0.8280065,64181.0,64180.0,0.00275839]
[1728889317962,0.8280065,64181.0,64180.0,0.00358039]
[1728889318199,0.8296505,64181.0,64180.0,0.00358039]
[1728889318674,0.92629515,64181.0,64180.0,0.00358039]
[1728889319133,1.01956514,64181.0,64180.0,0.00358039]
[1728889319361,0.92629515,64181.0,64180.0,0.00358039]
[1728889319590,1.04291358,64181.0,64180.0,0.00358039]
[1728889320586,0.92629515,64181.0,64180.0,0.00358039]
[1728889321048,1.0195937,64181.0,64180.0,0.00358039]
[1728889321535,0.92629515,64181.0,64180.0,0.00358039]
[1728889323276,1.04293764,64181.0,64180.0,0.00358039]
[1728889323725,1.04294642,64181.0,64180.0,0.00358039]
[1728889324443,0.92629515,64181.0,64180.0,0.00358039]
[1728889324890,1.04295615,64181.0,64180.0,0.00358039]
[1728889325121,1.04295613,64181.0,64180.0,0.00358039]
[1728889325575,0.92629515,64181.0,64180.0,0.00358039]
[1728889327190,0.92216008,64181.0,64180.0,0.00358039]
[1728889329073,0.7308243,64181.0,64180.0,0.00358039]
[1728889329296,0.92216008,64181.0,64180.0,0.00358039]
[1728889332630,1.06215325,64181.0,64180.0,0.00358039]
[1728889334033,0.87081747,64181.0,64180.0,0.00358039]
[1728889334283,1.06215325,64181.0,64180.0,0.00358039]
[1728889334753,0.92216008,64181.0,64180.0,0.00358039]
[1728889336708,1.07993703,64181.0,64180.0,0.00358039]
[1728889336956,0.92216008,64181.0,64180.0,0.00358039]
[1728889342535,0.92416008,64181.0,64180.0,0.00358039]
[1728889342757,0.92216008,64181.0,64180.0,0.00358039]
[1728889343000,0.92416008,64181.0,64180.0,0.00358039]
[1728889344715,0.278836,64170.0,64164.0,0.001644]
[1728889344945,0.58333965,64170.0,64164.0,0.001644]
[1728889345193,0.7237138,64170.0,64164.0,0.001644]
[1728889345924,0.62804591,64170.0,64164.0,0.001644]
[1728889346411,0.7237138,64170.0,64164.0,0.001644]
[1728889346651,0.58333965,64170.0,64164.0,0.001644]
[1728889346884,0.59733965,64170.0,64164.0,0.001644]
[1728889347838,0.60133965,64170.0,64164.0,0.001644]
[1728889348063,0.58733965,64170.0,64164.0,0.001644]
[1728889348515,0.60133965,64170.0,64164.0,0.001644]
[1728889348745,0.7377138,64170.0,64164.0,0.001644]
[1728889348989,0.59733965,64170.0,64164.0,0.001644]
[1728889349204,0.59397076,64170.0,64164.0,0.001644]
[1728889349431,0.60997076,64170.0,64164.0,0.001644]
[1728889349649,0.75026382,64170.0,64164.0,0.001644]
[1728889349884,0.73626382,64170.0,64164.0,0.001644]
[1728889350537,0.59597076,64170.0,64164.0,0.001644]
[1728889350971,0.59397076,64170.0,64164.0,0.001644]
[1728889351214,0.61097076,64170.0,64164.0,0.001644]
[1728889351658,0.60797076,64170.0,64164.0,0.001644]
[1728889351878,0.73426382,64170.0,64164.0,0.001644]
[1728889352113,0.75026382,64170.0,64164.0,0.001644]
[1728889352372,1.01613171,64170.0,64164.0,0.001644]
[1728889352607,0.86883865,64170.0,64164.0,0.001644]
[1728889353106,0.88283865,64170.0,64164.0,0.001644]
[1728889353827,0.155855,64162.0,64161.0,0.001644]
[1728889354045,0.85272654,64162.0,64161.0,0.001644]
[1728889354273,0.85072654,64162.0,64161.0,0.001644]
[1728889354490,0.85272654,64162.0,64161.0,0.001644]
[1728889354703,0.75705865,64162.0,64161.0,0.001644]
[1728889354918,0.85272654,64162.0,64161.0,0.001644]
[1728889355138,0.85472654,64162.0,64161.0,0.001644]
[1728889355578,0.85272654,64162.0,64161.0,0.001644]
[1728889355795,0.85272654,64162.0,64161.0,0.002644]
[1728889355796,0.85772654,64162.0,64161.0,0.002644]
[1728889356270,0.87172654,64162.0,64161.0,0.002644]
[1728889356480,0.87672654,64162.0,64161.0,0.002644]
[1728889357587,0.81843113,64162.0,64161.0,0.002644]
[1728889357806,0.77905865,64162.0,64161.0,0.002644]
[1728889359013,0.76505865,64162.0,64161.0,0.002644]
[1728889359237,0.77905865,64162.0,64161.0,0.002644]
[1728889359672,0.78943811,64162.0,64161.0,0.002644]
[1728889359892,0.77543811,64162.0,64161.0,0.002644]
[1728889360110,0.77043811,64162.0,64161.0,0.001644]
[1728889360339,0.77743811,64162.0,64161.0,0.002644]
[1728889360778,0.77043811,64162.0,64161.0,0.001644]
[1728889360998,0.77943811,64162.0,64161.0,0.002644]
[1728889361222,0.79143811,64162.0,64161.0,0.002644]
[1728889361667,0.79343811,64162.0,64161.0,0.002644]
[1728889362124,0.77943811,64162.0,64161.0,0.002644]
[1728889362339,0.875106,64162.0,64161.0,0.002644]
[1728889362544,0.889106,64162.0,64161.0,0.00104993]
[1728889362783,0.278865,64158.0,64157.0,0.001644]
[1728889363006,0.77673654,64158.0,64157.0,0.001644]
[1728889363299,0.77173654,64158.0,64157.0,0.001644]
[1728889363527,0.85283654,64158.0,64157.0,0.001644]
[1728889364224,0.84783654,64158.0,64157.0,0.001644]
[1728889364439,0.85283654,64158.0,64157.0,0.001644]
[1728889364656,0.85683654,64158.0,64157.0,0.001644]
[1728889365211,0.87083654,64158.0,64157.0,0.001644]
[1728889365640,0.98743053,64158.0,64157.0,0.001644]
[1728889366076,0.87283654,64158.0,64157.0,0.001644]
[1728889366571,0.424072,64155.0,64154.0,0.001644]
[1728889366773,0.96382521,64155.0,64154.0,0.001644]
[1728889367222,0.96382522,64155.0,64154.0,0.001644]
[1728889367465,0.84724354,64155.0,64154.0,0.001644]
[1728889367923,0.97982522,64155.0,64154.0,0.001644]
[1728889368161,0.98082522,64155.0,64154.0,0.001644]
[1728889368440,0.86224354,64155.0,64154.0,0.001644]
[1728889369109,0.155889,64148.0,64147.0,0.001644]
[1728889369359,0.75060228,64148.0,64147.0,0.001644]
[1728889370303,0.75160228,64148.0,64147.0,0.008644]
[1728889370529,0.75060228,64148.0,64147.0,0.001644]
[1728889370985,0.85327017,64148.0,64147.0,0.002644]
[1728889371184,0.82264879,64148.0,64147.0,0.002644]
[1728889371642,0.7109809,64148.0,64147.0,0.002644]
[1728889372082,0.7249809,64148.0,64147.0,0.002644]
[1728889372309,0.7299809,64148.0,64147.0,0.002644]
[1728889372526,0.76257758,64148.0,64147.0,0.002644]
[1728889372735,0.83341772,64148.0,64147.0,0.002644]
[1728889372949,0.79622901,64148.0,64147.0,0.002644]
[1728889373170,0.83676034,64148.0,64147.0,0.001644]
[1728889373380,0.78922901,64148.0,64147.0,0.002644]
[1728889373609,0.72632415,64148.0,64147.0,0.002644]
[1728889373842,0.78785526,64148.0,64147.0,0.002644]
[1728889374074,0.74032415,64148.0,64147.0,0.002644]
[1728889374313,0.78785522,64148.0,64147.0,0.002644]
[1728889374552,0.78785643,64148.0,64147.0,0.002644]
[1728889375438,0.83443721,64148.0,64147.0,0.002644]
[1728889376544,0.44845626,64148.0,64147.0,0.002644]
[1728889377463,0.43445626,64148.0,64147.0,0.002644]
[1728889377674,0.44145626,64148.0,64147.0,0.001644]
[1728889378096,0.46445626,64148.0,64147.0,0.001644]
[1728889378414,0.45045626,64148.0,64147.0,0.001644]
[1728889378572,0.46445626,64148.0,64147.0,0.001644]
[1728889382348,0.51205438,64148.0,64147.0,0.001644]
[1728889382583,0.58876328,64148.0,64147.0,0.001644]
[1728889383490,0.66496328,64148.0,64147.0,0.001644]
[1728889383731,0.68396328,64148.0,64147.0,0.001644]
[1728889383946,0.72556873,64148.0,64147.0,0.001644]
[1728889384180,0.71156873,64148.0,64147.0,0.001644]
[1728889384422,0.8122355,64148.0,64147.0,0.001644]
[1728889384678,0.87784261,64148.0,64147.0,0.001644]
[1728889384941,0.78663117,64148.0,64147.0,0.001644]
[1728889385171,0.78663117,64148.0,64142.0,0.001644]
[1728889385172,0.155901,64143.0,64142.0,0.001644]
[1728889385412,0.87368937,64143.0,64142.0,0.001644]
[1728889385655,0.98328211,64143.0,64142.0,0.001644]
[1728889386120,0.86676781,64143.0,64142.0,0.001644]
[1728889386367,0.98330453,64143.0,64142.0,0.001644]
[1728889386591,0.98332237,64143.0,64142.0,0.001644]
[1728889386815,0.99732237,64143.0,64142.0,0.001644]
[1728889387318,0.99132237,64143.0,64142.0,0.002644]
[1728889387573,0.98332797,64143.0,64142.0,0.001644]
[1728889387793,0.88076781,64143.0,64142.0,0.001644]
[1728889388017,0.88076781,64143.0,64138.0,0.001644]
[1728889388018,0.363104,64142.0,64141.0,1e-06]
[1728889388246,0.358111,64139.0,64138.0,0.001644]
[1728889388504,0.66060992,64139.0,64138.0,0.001644]
[1728889388994,0.7072352,64139.0,64138.0,0.001644]
[1728889389235,0.66060992,64139.0,64138.0,0.001644]
[1728889389473,0.6380352,64139.0,64138.0,0.002644]
[1728889389708,0.59640992,64139.0,64138.0,0.002644]
[1728889389960,0.58840992,64139.0,64138.0,0.001644]
[1728889390195,0.58740992,64139.0,64138.0,0.001644]
[1728889390650,0.49174203,64139.0,64138.0,0.001644]
[1728889391120,0.50574203,64139.0,64138.0,0.001644]
[1728889391349,0.51602816,64139.0,64138.0,0.001644]
[1728889391568,0.50202816,64139.0,64138.0,0.001644]
[1728889392026,0.46442114,64139.0,64138.0,0.001644]
[1728889392253,0.46842114,64139.0,64138.0,0.001644]
[1728889392760,0.46442114,64139.0,64138.0,0.001644]
[1728889392994,0.46442114,64139.0,64138.0,0.002644]
[1728889393213,0.45042114,64139.0,64138.0,0.001644]
[1728889393689,0.45042114,64139.0,64138.0,0.003644]
[1728889393925,0.46342114,64139.0,64138.0,0.001644]
[1728889394382,0.45042114,64139.0,64138.0,0.001644]
[1728889394593,0.51207161,64139.0,64138.0,0.001644]
[1728889395039,0.49807161,64139.0,64138.0,0.001644]
[1728889395527,0.54473201,64139.0,64138.0,0.001644]
[1728889395752,0.73138395,64139.0,64138.0,0.001644]
[1728889395974,0.56806221,64139.0,64138.0,0.001644]
[1728889396622,0.59139242,64139.0,64138.0,0.002644]
[1728889396842,0.59139242,64139.0,64138.0,0.001644]
[1728889397062,0.51307161,64139.0,64138.0,0.001644]
[1728889397489,0.49807161,64139.0,64138.0,0.001644]
[1728889397734,0.90080476,64139.0,64138.0,0.001644]
[1728889397954,0.58917161,64139.0,64138.0,0.001644]
[1728889398827,0.57517161,64139.0,64138.0,0.001644]
[1728889399066,0.58917161,64139.0,64138.0,0.001644]
[1728889399679,0.58817161,64139.0,64138.0,0.001644]
[1728889399880,0.73039996,64139.0,64138.0,0.001644]
[1728889400509,0.72239996,64139.0,64138.0,0.002644]
[1728889400625,0.77108401,64139.0,64138.0,0.001644]
[1728889400865,0.77208401,64139.0,64138.0,0.001644]
[1728889401108,0.64029996,64139.0,64138.0,0.001644]
[1728889401568,0.77408401,64139.0,64138.0,0.001644]
[1728889401794,0.77108401,64139.0,64138.0,0.001644]
[1728889402258,0.75808401,64139.0,64138.0,0.001644]
[1728889402737,0.64129996,64139.0,64138.0,0.001644]
[1728889402986,0.74109996,64139.0,64138.0,0.001644]
[1728889403447,0.74009996,64139.0,64138.0,0.001644]
[1728889403670,0.75709996,64139.0,64138.0,0.001644]
[1728889403891,0.75409996,64139.0,64138.0,0.001644]
[1728889404412,0.75509996,64139.0,64138.0,0.001644]
[1728889404645,0.74009996,64139.0,64138.0,0.001644]
[1728889404880,0.75409996,64139.0,64138.0,0.001644]
[1728889405350,0.74309996,64139.0,64138.0,0.001644]
[1728889407184,0.74009996,64139.0,64138.0,0.001644]
[1728889407408,0.64129996,64139.0,64138.0,0.001644]
[1728889407638,0.65529996,64139.0,64138.0,0.001644]
[1728889408184,0.64129996,64139.0,64138.0,0.001644]
[1728889408408,0.65729996,64139.0,64138.0,0.001644]
[1728889408900,0.65029996,64139.0,64138.0,0.002644]
[1728889409128,0.63983409,64139.0,64138.0,0.001644]
[1728889410266,0.65383409,64139.0,64138.0,0.001644]
[1728889410759,0.65683409,64139.0,64138.0,0.001644]
[1728889411229,0.65383409,64139.0,64138.0,0.001644]
[1728889411703,0.63983409,64139.0,64138.0,0.001644]
[1728889411940,0.63983409,64139.0,64138.0,0.002644]
[1728889411941,0.66083409,64139.0,64138.0,0.002644]
[1728889412169,0.65383409,64139.0,64138.0,0.001644]
[1728889412407,0.65683409,64139.0,64138.0,0.001644]
[1728889413379,0.64283409,64139.0,64138.0,0.001644]
[1728889413599,0.65383409,64139.0,64138.0,0.001644]
[1728889414040,0.64683409,64139.0,64138.0,0.002644]
[1728889414260,0.64683409,64139.0,64138.0,0.001644]
[1728889414261,0.65383409,64139.0,64138.0,0.001644]
[1728889414486,0.65683409,64139.0,64138.0,0.001644]
[1728889415451,0.60897442,64139.0,64138.0,0.001644]
[1728889415691,0.49207161,64139.0,64138.0,0.001644]
[1728889415959,0.60897577,64139.0,64138.0,0.001644]
[1728889416232,0.49207161,64139.0,64138.0,0.001644]
[1728889416469,0.47807161,64139.0,64138.0,0.001644]
[1728889416689,0.48907161,64139.0,64138.0,0.001644]
[1728889416913,0.58559493,64139.0,64138.0,0.001644]
[1728889417159,0.49807161,64139.0,64138.0,0.001644]
[1728889417379,0.60359666,64139.0,64138.0,0.001644]
[1728889417602,0.51007161,64139.0,64138.0,0.004644]
[1728889418081,1.0449123,64139.0,64138.0,0.001644]
[1728889418305,1.0449123,64139.0,64138.0,0.004644]
[1728889418306,0.95188465,64139.0,64138.0,0.004644]
[1728889418533,0.81159996,64139.0,64138.0,0.004644]
[1728889419421,0.82359996,64139.0,64138.0,0.004644]
[1728889419930,0.81159996,64139.0,64138.0,0.001644]
[1728889420380,0.82559996,64139.0,64138.0,0.001644]
[1728889420836,0.81459996,64139.0,64138.0,0.001644]
[1728889421054,0.82559996,64139.0,64138.0,0.001644]
[1728889421279,0.82759996,64139.0,64138.0,0.001644]
[1728889421497,0.83259996,64139.0,64138.0,0.001644]
[1728889421944,0.83259996,64139.0,64138.0,1e-06]
[1728889422398,0.99044532,64139.0,64138.0,1e-06]
[1728889422831,0.97144532,64139.0,64138.0,1e-06]
[1728889423065,0.97844532,64139.0,64138.0,1e-06]
[1728889423318,0.83621697,64139.0,64138.0,1e-06]
[1728889423549,0.50234935,64135.0,64134.0,0.016682]
[1728889423831,0.71122383,64135.0,64134.0,0.016682]
[1728889424076,0.96057732,64135.0,64134.0,0.016682]
[1728889424296,0.80272383,64135.0,64134.0,0.016682]
[1728889424521,0.96057732,64135.0,64134.0,0.016682]
[1728889424982,0.97457732,64135.0,64134.0,0.016682]
[1728889425208,0.50426635,64128.0,64127.0,0.001644]
[1728889425440,0.71314083,64128.0,64127.0,0.001644]
[1728889426574,0.85345577,64128.0,64127.0,0.001644]
[1728889426792,0.71314083,64128.0,64127.0,0.001644]
[1728889427014,0.72714083,64128.0,64127.0,0.001644]
[1728889427950,0.68073814,64128.0,64127.0,0.001644]
[1728889429081,0.50181248,64128.0,64127.0,0.001644]
[1728889429762,0.51249751,64128.0,64127.0,0.001644]
[1728889431332,0.62939923,64128.0,64127.0,0.001644]
[1728889431792,0.51249751,64128.0,64127.0,0.001644]
[1728889432008,0.53498126,64128.0,64127.0,0.099144]
[1728889432469,0.46484704,64128.0,64127.0,0.099144]
[1728889432717,0.53498126,64128.0,64127.0,0.099144]
[1728889432985,0.53498126,64128.0,64127.0,0.31698897]
[1728889432986,0.014,64128.0,64127.0,0.31698897]
[1728889433241,0.014,64128.0,64127.0,0.33625543]
[1728889433736,0.014,64128.0,64127.0,0.34516822]
[1728889433966,0.001646,64139.0,64131.0,0.1723]
[1728889434204,0.33331234,64133.0,64132.0,0.00556966]
[1728889434430,0.1,64133.0,64132.0,0.0055676]
[1728889434654,0.001646,64139.0,64133.0,0.1743]
[1728889435136,0.001646,64139.0,64133.0,0.330225]
[1728889435407,0.001646,64139.0,64134.0,0.14224497]
[1728889435650,0.001646,64139.0,64135.0,0.1743]
[1728889436105,0.007646,64139.0,64135.0,0.1743]
[1728889436602,0.107646,64139.0,64135.0,0.1743]
[1728889436832,0.107646,64139.0,64138.0,0.47205797]
[1728889436833,0.008646,64139.0,64138.0,0.47205797]
[1728889437055,0.008646,64139.0,64138.0,0.64774434]
[1728889437281,0.001646,64139.0,64138.0,0.64774434]
[1728889437506,0.007646,64139.0,64138.0,0.64774434]
[1728889437729,0.008646,64139.0,64138.0,0.64774434]
[1728889437990,0.002646,64139.0,64138.0,0.64974434]
[1728889438212,0.002646,64139.0,64138.0,0.64774434]
[1728889438437,0.003646,64139.0,64138.0,0.64084401]
[1728889438895,0.002646,64139.0,64138.0,0.64084401]
[1728889439339,0.002646,64139.0,64138.0,0.65484401]
[1728889439556,0.002646,64139.0,64138.0,0.64084401]
[1728889439784,0.002646,64139.0,64138.0,0.65484401]
[1728889440689,0.001646,64139.0,64138.0,0.63884401]
[1728889440920,0.001646,64139.0,64138.0,0.31114497]
[1728889441147,0.002646,64139.0,64138.0,0.17745052]
[1728889441374,0.002646,64139.0,64138.0,0.31414497]
[1728889441598,0.001646,64139.0,64138.0,0.31114497]
[1728889441833,0.002646,64139.0,64138.0,0.31414497]
[1728889442052,0.002646,64139.0,64138.0,0.32814497]
[1728889442276,0.002646,64139.0,64138.0,0.31414497]
[1728889442495,0.001646,64139.0,64138.0,0.31114497]
[1728889442711,0.002646,64139.0,64138.0,0.32814497]
[1728889442927,0.002646,64139.0,64138.0,0.31414497]
[1728889443814,0.002646,64139.0,64138.0,0.32814497]
[1728889444046,0.002646,64139.0,64138.0,0.32514497]
[1728889444047,0.001646,64139.0,64138.0,0.32514497]
[1728889444266,0.002646,64139.0,64138.0,0.32714497]
[1728889444739,0.001646,64139.0,64138.0,0.32514497]
[1728889444955,0.001646,64139.0,64138.0,0.31114497]
[1728889445169,0.002646,64139.0,64138.0,0.31314497]
[1728889446097,0.002646,64139.0,64138.0,0.32714497]
[1728889446762,0.002646,64139.0,64138.0,0.46905797]
[1728889446992,0.002646,64139.0,64138.0,0.32556497]
[1728889447206,0.001646,64139.0,64138.0,0.47947797]
[1728889447639,0.001646,64139.0,64138.0,0.48147797]
[1728889448065,0.001646,64139.0,64138.0,0.47947797]
[1728889448285,0.001646,64139.0,64138.0,0.46547797]
[1728889448500,0.002646,64139.0,64138.0,0.48147797]
[1728889448942,0.002646,64139.0,64138.0,0.46747797]
[1728889449182,0.002646,64139.0,64138.0,0.48147797]
[1728889449383,0.002646,64139.0,64138.0,0.46747797]
[1728889449630,0.002646,64139.0,64138.0,0.63570198]
[1728889449853,0.002646,64139.0,64138.0,0.64970198]
[1728889450073,0.002646,64139.0,64138.0,0.63570198]
[1728889450296,0.001646,64139.0,64138.0,0.63370198]
[1728889450537,0.002646,64139.0,64138.0,0.64124902]
[1728889450774,0.002646,64139.0,64138.0,0.78349399]
[1728889451024,0.002646,64139.0,64138.0,0.78149399]
[1728889451246,0.001646,64139.0,64138.0,0.78149399]
[1728889451466,0.001646,64141.0,64140.0,0.330008]
[1728889451682,0.001646,64141.0,64140.0,0.49677905]
[1728889452824,0.001646,64141.0,64140.0,0.51077905]
[1728889453725,0.001646,64141.0,64140.0,0.65302402]
[1728889453938,0.002646,64141.0,64140.0,0.66102402]
[1728889456377,0.23331234,64154.0,64140.0,0.66102402]
[1728889456378,0.23331234,64154.0,64152.0,0.155877]
[1728889456593,0.23331234,64154.0,64153.0,0.14224497]
[1728889457043,0.1,64160.0,64153.0,0.29812197]
[1728889457722,0.001,64154.0,64153.0,0.29812197]
[1728889458181,0.1,64160.0,64153.0,0.29812197]
[1728889458682,0.005644,64157.0,64153.0,0.31212197]
[1728889459449,0.005644,64157.0,64154.0,0.00554361]
[1728889459710,0.005644,64157.0,64153.0,0.31112197]
[1728889459926,0.005644,64157.0,64154.0,0.00554304]
[1728889460148,0.001644,64157.0,64153.0,0.29812197]
[1728889460368,0.001644,64157.0,64154.0,0.00554174]
[1728889460599,0.001644,64157.0,64155.0,0.00554174]
[1728889460813,0.001644,64157.0,64153.0,0.31212197]
[1728889461026,0.001644,64157.0,64154.0,0.00554544]
[1728889461297,0.001644,64157.0,64155.0,0.00554544]
[1728889461482,0.001644,64157.0,64156.0,0.00554544]
[1728889462408,0.001644,64157.0,64156.0,0.01443353]
[1728889462652,0.001644,64157.0,64156.0,0.02843353]
[1728889463317,0.001644,64157.0,64156.0,0.014]
[1728889463535,0.001644,64157.0,64156.0,0.02844627]
[1728889464190,0.001644,64157.0,64156.0,0.18431627]
[1728889464815,0.001644,64157.0,64156.0,0.17131627]
[1728889465071,0.001644,64157.0,64156.0,0.18531627]
[1728889465359,0.001644,64157.0,64156.0,0.18143525]
[1728889465590,0.001644,64157.0,64156.0,0.18743525]
[1728889465591,0.002644,64157.0,64156.0,0.18743525]
[1728889465824,0.002644,64157.0,64156.0,0.36265926]
[1728889466051,0.002644,64157.0,64156.0,0.36765926]
[1728889466278,0.002644,64157.0,64156.0,0.36965926]
[1728889466472,0.23331234,64163.0,64162.0,0.14224497]
[1728889466708,0.23331234,64163.0,64162.0,0.32366522]
[1728889467144,0.155838,64169.0,64162.0,0.32366416]
[1728889467369,0.155838,64169.0,64167.0,0.14224497]
[1728889467601,0.155838,64169.0,64168.0,0.01444382]
[1728889468275,0.1,64170.0,64168.0,0.01444382]
[1728889468493,0.1,64170.0,64167.0,0.14224497]
[1728889468494,0.255838,64170.0,64169.0,0.01444382]
[1728889469388,0.1,64172.0,64169.0,0.01444382]
[1728889469602,0.1,64172.0,64167.0,0.14224497]
[1728889469603,0.1,64172.0,64170.0,0.01443949]
[1728889469832,0.1,64172.0,64171.0,0.14779987]
[1728889470340,0.155829,64173.0,64171.0,0.15668413]
[1728889470603,0.001644,64180.0,64172.0,0.11043686]
[1728889470843,0.23331234,64177.0,64172.0,0.096]
[1728889471071,0.001644,64180.0,64176.0,0.15582]
[1728889471318,0.001644,64180.0,64179.0,0.14224497]
[1728889471535,0.001644,64180.0,64179.0,0.15667484]
[1728889471754,0.001644,64180.0,64179.0,0.01442987]
[1728889472196,0.003644,64180.0,64179.0,0.01442987]
[1728889472682,0.003644,64180.0,64179.0,0.00554954]
[1728889473381,0.003644,64180.0,64179.0,0.01442362]
[1728889474082,0.001644,64180.0,64179.0,0.01442362]
[1728889474323,0.001644,64180.0,64179.0,0.17066859]
[1728889474560,0.002644,64180.0,64179.0,0.31205897]
[1728889474793,0.002644,64180.0,64179.0,0.17066073]
[1728889475044,0.00070568,64180.0,64179.0,0.48769874]
[1728889475346,0.055844,64181.0,64180.0,0.155811]
[1728889475612,0.055844,64181.0,64180.0,0.1813166]
[1728889477151,0.055844,64181.0,64180.0,0.0255056]
[1728889478009,0.055844,64181.0,64180.0,0.0395056]
[1728889478223,0.055844,64181.0,64180.0,0.0445056]
[1728889478224,0.056844,64181.0,64180.0,0.0445056]
[1728889478678,0.056844,64181.0,64180.0,0.04450207]
[1728889479556,0.056844,64181.0,64180.0,0.20031307]
[1728889479796,0.056844,64181.0,64180.0,0.04450207]
[1728889480217,0.056844,64181.0,64180.0,0.20031307]
[1728889480429,0.056844,64181.0,64180.0,0.04450207]
[1728889480853,0.056844,64181.0,64180.0,0.20031307]
[1728889481526,0.056844,64181.0,64180.0,0.04450207]
[1728889482229,0.056844,64181.0,64180.0,0.04450378]
[1728889486788,0.056844,64181.0,64180.0,0.03341413]
[1728889489870,0.056844,64181.0,64180.0,0.02454553]
[1728889490114,0.056844,64181.0,64180.0,0.03341946]
[1728889493899,0.056844,64181.0,64180.0,0.12901811]
[1728889494718,0.056844,64181.0,64180.0,0.28482911]
[1728889495378,0.056844,64181.0,64180.0,0.12901811]
[1728889496256,0.056844,64181.0,64180.0,0.28482911]
[1728889496902,0.056844,64181.0,64180.0,0.29594838]
[1728889497122,0.056844,64181.0,64180.0,0.39154703]
[1728889497342,0.02173017,64181.0,64180.0,0.39154703]
[1728889498579,0.002644,64181.0,64180.0,0.39154703]
[1728889498955,0.002644,64181.0,64180.0,0.39236903]
[1728889499776,0.002644,64181.0,64180.0,0.55359304]
[1728889500025,0.021744,64181.0,64180.0,0.55359304]
[1728889500799,0.021744,64181.0,64180.0,0.52805431]
[1728889500990,0.021744,64181.0,64180.0,0.55366289]
[1728889501333,0.021744,64181.0,64180.0,0.45806424]
[1728889503986,0.021744,64181.0,64180.0,0.29684023]
[1728889506731,0.021744,64181.0,64180.0,0.30847244]
[1728889507870,0.021744,64181.0,64180.0,0.29684589]
[1728889508098,0.021744,64181.0,64180.0,0.30847738]
[1728889508318,0.021744,64181.0,64180.0,0.56530004]
[1728889508796,0.021744,64181.0,64180.0,0.56730004]
[1728889509023,0.021744,64181.0,64180.0,0.66108313]
[1728889509475,0.021744,64181.0,64180.0,0.65180004]
[1728889510199,0.021744,64181.0,64180.0,0.64680004]
[1728889510200,0.020744,64181.0,64180.0,0.64680004]
[1728889510641,0.021744,64181.0,64180.0,0.65680004]
[1728889510869,0.021744,64181.0,64180.0,0.64280004]
[1728889511097,0.021744,64181.0,64180.0,0.65680004]
[1728889511544,0.021744,64181.0,64180.0,0.81055296]
[1728889511769,0.021744,64181.0,64180.0,0.86176401]
[1728889511994,0.020744,64181.0,64180.0,0.75616443]
[1728889512209,0.020744,64181.0,64180.0,0.80257464]
[1728889512440,0.021744,64181.0,64180.0,0.76916443]
[1728889512884,0.020744,64181.0,64180.0,0.75616443]
[1728889513101,0.021744,64181.0,64180.0,0.76816443]
[1728889513800,0.020744,64181.0,64180.0,0.75616443]
[1728889514026,0.021744,64181.0,64180.0,0.77016443]
[1728889514239,0.021744,64181.0,64180.0,0.81657464]